bitfinex-derivatives/quotes_BTCF0:USTF0_20240815
["timestamp","ask_amount","ask_price","bid_price","bid_amount"]
[1723755783429,0.3608,56710.0,56695.0,0.3608]
[1723755783629,0.3608,56710.0,56694.0,3.77088]
[1723755783834,0.3608,56696.0,56694.0,3.77]
[1723755784031,4.19e-05,56695.0,56686.0,0.014]
[1723755784237,0.3608,56687.0,56670.0,0.3608]
[1723755784424,0.3608,56687.0,56677.0,0.044095]
[1723755784626,0.3608,56687.0,56679.0,0.044093]
[1723755784829,4.19e-05,56695.0,56676.0,0.3608]
[1723755785041,0.00026447,56684.0,56676.0,0.3608]
[1723755785436,0.00026447,56684.0,56682.0,0.044091]
[1723755785636,0.00026447,56684.0,56683.0,3.77]
[1723755785831,0.00026447,56684.0,56683.0,4.29924]
[1723755786027,0.00026447,56684.0,56683.0,4.69924]
[1723755786233,0.00026447,56684.0,56683.0,3.77]
[1723755786438,0.00030637,56684.0,56683.0,4.29924]
[1723755786833,0.36110637,56684.0,56683.0,3.77]
[1723755787344,0.36110637,56684.0,56673.0,0.00026447]
[1723755787653,0.3608,56676.0,56663.0,0.60422362]
[1723755787843,0.3608,56676.0,56674.0,3.77]
[1723755788026,0.044092,56681.0,56674.0,3.77]
[1723755788427,0.36110637,56684.0,56674.0,3.77]
[1723755788641,0.36110637,56684.0,56679.0,0.044093]
[1723755788941,0.3608,56680.0,56674.0,3.77]
[1723755789236,0.3608,56675.0,56674.0,3.777]
[1723755790243,0.3608,56680.0,56674.0,4.750416]
[1723755790441,0.00030637,56684.0,56679.0,0.3608]
[1723755790634,0.004,56684.0,56683.0,0.04409]
[1723755790828,0.004,56684.0,56681.0,0.044091]
[1723755791345,0.3608,56686.0,56681.0,0.52928]
[1723755791541,0.044084,56691.0,56681.0,0.52928]
[1723755791542,0.3608,56682.0,56681.0,0.52924]
[1723755791837,0.00026447,56689.0,56664.0,0.3608]
[1723755792042,0.00026447,56689.0,56680.0,0.3608]
[1723755792240,0.00026447,56689.0,56687.0,0.044087]
[1723755792540,0.00026447,56689.0,56688.0,0.87463912]
[1723755792737,0.00026447,56689.0,56688.0,0.87298518]
[1723755793131,0.3608,56716.0,56688.0,1.04298518]
[1723755793332,0.3608,56716.0,56704.0,0.3608]
[1723755793534,0.41609424,56716.0,56710.0,0.044069]
[1723755793839,0.41609424,56716.0,56715.0,3.77]
[1723755794034,0.3608,56716.0,56715.0,0.52896]
[1723755794234,0.3608,56716.0,56704.0,0.3608]
[1723755794439,0.3608,56716.0,56709.0,0.044069]
[1723755794740,0.3628,56716.0,56710.0,0.00026447]
[1723755795041,0.41609424,56711.0,56702.0,0.044075]
[1723755795238,0.05529424,56707.0,56702.0,0.044075]
[1723755795439,0.05529424,56707.0,56703.0,3.77]
[1723755795642,0.05529424,56707.0,56692.0,0.3608]
[1723755795643,0.3112,56709.0,56692.0,0.3608]
[1723755795943,0.3112,56709.0,56628.0,0.3205]
[1723755795944,0.7216,56693.0,56679.0,0.044093]
[1723755796241,0.3608,56693.0,56687.0,0.044087]
[1723755796441,0.3608,56693.0,56691.0,0.00026447]
[1723755796739,0.044087,56688.0,56676.0,0.045055]
[1723755796938,0.3608,56693.0,56668.0,4.37772]
[1723755797133,0.044091,56682.0,56670.0,0.0441]
[1723755797534,0.3608,56677.0,56670.0,0.0441]
[1723755798036,0.3608,56677.0,56676.0,0.008]
[1723755798838,0.3618,56677.0,56676.0,0.008]
[1723755799844,0.3628,56677.0,56670.0,0.028]
[1723755800042,0.404899,56672.0,56670.0,0.028]
[1723755800434,0.404899,56672.0,56668.0,0.00026447]
[1723755800745,0.06850607,56670.0,56668.0,0.00026447]
[1723755801244,0.044105,56665.0,56660.0,0.00017265]
[1723755801441,0.3608,56662.0,56660.0,0.00017265]
[1723755801742,0.22543059,56661.0,56660.0,0.00017265]
[1723755801942,0.22543059,56661.0,56637.0,0.5403]
[1723755801943,0.044112,56655.0,56637.0,0.3608]
[1723755802150,0.10389285,56644.0,56643.0,0.044121]
[1723755802440,0.10390916,56645.0,56644.0,0.04412]
[1723755802659,0.10392465,56658.0,56644.0,0.3126]
[1723755802941,0.08660327,56652.0,56650.0,0.044116]
[1723755803249,0.08659236,56660.0,56659.0,0.044109]
[1723755803442,0.10390992,56666.0,56664.0,0.044105]
[1723755803638,0.3618,56670.0,56666.0,0.5294]
[1723755803845,0.10392366,56669.0,56667.0,0.044102]
[1723755804038,0.10418836,56671.0,56669.0,0.044101]
[1723755804238,0.10392366,56670.0,56666.0,0.00096]
[1723755804536,0.10392366,56668.0,56667.0,0.5294]
[1723755804937,0.10792366,56669.0,56667.0,0.9294]
[1723755805147,0.12120833,56680.0,56668.0,0.5294]
[1723755805446,0.5497,56727.0,56668.0,0.5294]
[1723755805447,7e-08,56672.0,56668.0,0.56]
[1723755805643,0.08663857,56676.0,56671.0,0.7216]
[1723755805853,0.22703653,56691.0,56680.0,0.044092]
[1723755806051,0.16348234,56690.0,56677.0,0.3608]
[1723755806241,0.0617442,56686.0,56677.0,0.47986614]
[1723755806546,0.044093,56680.0,56678.0,0.0002647]
[1723755806738,0.044102,56667.0,56666.0,0.3608]
[1723755806941,0.1058452,56669.0,56658.0,0.404909]
[1723755807146,0.0617442,56666.0,56658.0,0.404909]
[1723755807343,0.0617442,56659.0,56658.0,0.3608]
[1723755808835,0.1058532,56659.0,56658.0,0.3608]
[1723755809042,0.4225442,56659.0,56655.0,0.247]
[1723755809244,0.0617442,56656.0,56655.0,0.247]
[1723755809644,0.1058552,56656.0,56655.0,0.247]
[1723755809952,0.08748659,56659.0,56658.0,0.001]
[1723755810255,7e-07,56660.0,56658.0,0.5118]
[1723755810438,7e-07,56661.0,56659.0,3.858218]
[1723755810752,0.0865148,56678.0,56660.0,0.044108]
[1723755810948,0.0865148,56678.0,56675.0,0.3608]
[1723755811138,0.3608,56690.0,56678.0,0.044094]
[1723755811139,0.0865148,56679.0,56678.0,0.044094]
[1723755811344,0.08652308,56679.0,56678.0,0.194094]
[1723755811540,0.08652308,56680.0,56678.0,0.573414]
[1723755811745,0.08652308,56679.0,56675.0,0.3608]
[1723755811943,0.0617442,56679.0,56671.0,0.0002647]
[1723755812155,0.0617442,56673.0,56671.0,0.0002647]
[1723755812454,0.0617442,56669.0,56668.0,0.35972645]
[1723755812654,0.0617442,56669.0,56668.0,0.30546211]
[1723755813845,0.0617442,56669.0,56664.0,0.3608]
[1723755814049,0.08658197,56665.0,56664.0,0.3608]
[1723755814248,0.0627442,56669.0,56668.0,0.007]
[1723755814449,0.001,56669.0,56668.0,0.012]
[1723755814749,0.0627442,56669.0,56668.0,0.012]
[1723755815542,0.4235442,56669.0,56668.0,0.012]
[1723755815850,0.57600657,56669.0,56668.0,0.012]
[1723755816047,0.044104,56665.0,56664.0,0.005]
[1723755816245,0.19656637,56665.0,56664.0,0.005]
[1723755816444,0.25831057,56665.0,56664.0,0.005]
[1723755816746,0.1058482,56665.0,56664.0,0.005]
[1723755816950,0.1058482,56665.0,56663.0,0.0002647]
[1723755817143,0.4225442,56664.0,56663.0,0.0002647]
[1723755817351,0.46753929,56664.0,56663.0,0.0002647]
[1723755817743,0.044116,56650.0,56646.0,0.24704]
[1723755817950,0.044106,56663.0,56627.0,0.3608]
[1723755817951,0.4225442,56647.0,56627.0,0.3608]
[1723755818170,0.08652455,56637.0,56627.0,0.3608]
[1723755818361,0.13065155,56636.0,56627.0,0.404933]
[1723755818653,0.044128,56634.0,56622.0,0.3608]
[1723755818853,0.08652455,56637.0,56627.0,0.3608]
[1723755819041,0.08652455,56637.0,56632.0,0.04434229]
[1723755819248,0.08652455,56639.0,56632.0,0.00021329]
[1723755819448,0.14826875,56639.0,56632.0,0.00021329]
[1723755819648,0.08652455,56638.0,56632.0,0.00021329]
[1723755819845,0.001,56636.0,56632.0,0.01421329]
[1723755820151,0.001,56636.0,56635.0,0.044127]
[1723755820351,0.001,56636.0,56634.0,0.3608]
[1723755820556,0.0002647,56639.0,56635.0,0.52972]
[1723755820852,0.0012647,56639.0,56637.0,0.044125]
[1723755821251,0.001,56638.0,56637.0,0.573805]
[1723755821445,0.001,56638.0,56637.0,0.044125]
[1723755821649,0.001,56638.0,56637.0,0.573805]
[1723755822151,0.001,56638.0,56637.0,1.133805]
[1723755822361,0.001,56638.0,56637.0,1.13257575]
[1723755822547,0.001,56638.0,56637.0,1.13137132]
[1723755822854,0.0002647,56639.0,56637.0,0.9701656]
[1723755822855,0.0012647,56639.0,56637.0,0.9701656]
[1723755823058,0.0012647,56639.0,56637.0,0.013]
[1723755823449,0.0002647,56639.0,56637.0,0.013]
[1723755823650,0.001,56638.0,56637.0,0.027]
[1723755823853,0.001,56638.0,56637.0,0.071125]
[1723755824059,0.001,56638.0,56637.0,0.586805]
[1723755824358,0.0012647,56639.0,56637.0,0.600805]
[1723755825055,0.0022647,56639.0,56638.0,0.89048]
[1723755825249,0.0022647,56639.0,56638.0,1.46048]
[1723755825756,0.0012647,56639.0,56638.0,5.23048]
[1723755825949,0.0022647,56639.0,56638.0,5.23048]
[1723755826351,0.0012647,56639.0,56638.0,5.23048]
[1723755826652,0.0012647,56639.0,56638.0,5.24248]
[1723755827050,0.0022647,56639.0,56638.0,5.25648]
[1723755827252,0.08652455,56657.0,56656.0,0.044111]
[1723755827457,0.0617442,56652.0,56650.0,0.044115]
[1723755827650,0.0617442,56653.0,56650.0,0.044115]
[1723755827961,0.12356,56652.0,56650.0,0.044115]
[1723755829162,0.12356,56652.0,56650.0,0.047115]
[1723755829363,0.12356,56652.0,56650.0,0.217115]
[1723755829751,0.12556,56652.0,56651.0,0.573675]
[1723755829950,0.12556,56652.0,56651.0,0.723675]
[1723755830157,0.12556,56652.0,56651.0,1.123675]
[1723755831367,0.12556,56652.0,56651.0,0.194115]
[1723755831556,0.12556,56652.0,56651.0,0.184115]
[1723755831865,0.12356,56652.0,56651.0,0.184115]
[1723755832056,0.12656,56652.0,56651.0,0.184115]
[1723755832468,0.1883042,56652.0,56651.0,0.14]
[1723755832669,0.1883042,56652.0,56650.0,0.003]
[1723755832855,0.0617442,56651.0,56650.0,0.044115]
[1723755833450,0.12656,56652.0,56650.0,0.204115]
[1723755833655,0.3608,56651.0,56650.0,0.204115]
[1723755833852,0.12656,56652.0,56651.0,0.044115]
[1723755834159,0.12656,56652.0,56651.0,0.564915]
[1723755834565,0.1883042,56652.0,56651.0,0.5208]
[1723755834767,0.1883042,56652.0,56650.0,0.01]
[1723755834957,0.0617442,56651.0,56650.0,0.01]
[1723755835356,0.1058582,56651.0,56650.0,0.013]
[1723755835560,0.0617442,56651.0,56650.0,0.013]
[1723755836076,0.044115,56650.0,56647.0,0.3608]
[1723755836259,0.0617442,56648.0,56647.0,0.15]
[1723755836964,0.044118,56646.0,56645.0,0.0002647]
[1723755837158,0.1058622,56646.0,56645.0,0.0002647]
[1723755839470,0.1058622,56646.0,56645.0,0.0042647]
[1723755840286,0.1058622,56646.0,56645.0,0.0122647]
[1723755840488,0.5058622,56646.0,56645.0,0.0122647]
[1723755840686,0.5058622,56646.0,56629.0,0.3608]
[1723755840687,0.0617442,56646.0,56629.0,0.044131]
[1723755840984,0.0617442,56634.0,56629.0,0.044131]
[1723755841283,0.3608,56644.0,56633.0,0.7216]
[1723755841587,0.0617442,56642.0,56638.0,0.044124]
[1723755841784,0.3608,56639.0,56638.0,0.214124]
[1723755841981,0.4666682,56639.0,56633.0,0.0002647]
[1723755842186,0.4666682,56639.0,56638.0,0.044124]
[1723755842187,0.3608,56639.0,56638.0,0.044124]
[1723755842482,0.3608,56639.0,56638.0,0.194124]
[1723755842888,0.001,56642.0,56641.0,0.044122]
[1723755843189,0.0627442,56642.0,56641.0,0.044122]
[1723755843396,0.07479206,56643.0,56641.0,1.09964]
[1723755843700,0.04947343,56643.0,56642.0,0.573761]
[1723755843997,0.04947343,56643.0,56642.0,0.743761]
[1723755843998,0.06712343,56643.0,56642.0,0.743761]
[1723755844195,0.06712343,56643.0,56642.0,1.143761]
[1723755844389,0.06712343,56643.0,56642.0,0.214121]
[1723755844596,0.06712343,56643.0,56642.0,0.07029324]
[1723755844892,0.06712343,56643.0,56642.0,0.044121]
[1723755845201,0.06712343,56643.0,56642.0,1.123761]
[1723755845395,0.06812343,56643.0,56642.0,1.20105424]
[1723755845595,0.05285148,56643.0,56642.0,1.24520879]
[1723755845890,0.08652455,56669.0,56665.0,0.044103]
[1723755846090,0.3608,56677.0,56645.0,0.044119]
[1723755846091,0.08652455,56676.0,56671.0,0.044099]
[1723755846290,0.3608,56677.0,56666.0,0.044103]
[1723755846291,0.0617442,56667.0,56666.0,0.044103]
[1723755846486,0.3608,56677.0,56676.0,0.044095]
[1723755846690,0.3608,56677.0,56663.0,0.36]
[1723755846691,0.36236001,56684.0,56669.0,0.3608]
[1723755846883,0.08652455,56690.0,56680.0,0.3608]
[1723755847082,0.3608,56693.0,56669.0,0.5108]
[1723755847083,0.0617442,56681.0,56675.0,0.3608]
[1723755847294,0.0002647,56682.0,56681.0,0.044091]
[1723755847496,0.0002647,56682.0,56681.0,0.019761]
[1723755847695,0.0002647,56682.0,56681.0,0.549041]
[1723755847992,7e-07,56682.0,56681.0,1.01935663]
[1723755848197,7e-07,56683.0,56681.0,0.419761]
[1723755848491,0.3608,56708.0,56683.0,0.044089]
[1723755848696,0.3608,56708.0,56705.0,0.044072]
[1723755848895,0.3608,56708.0,56707.0,0.044071]
[1723755849082,0.0617442,56708.0,56707.0,0.044071]
[1723755849699,0.0002647,56713.0,56711.0,0.044067]
[1723755849889,0.0002647,56713.0,56707.0,0.92904]
[1723755849890,0.0617442,56708.0,56707.0,0.00092]
[1723755850086,0.0617442,56708.0,56705.0,0.248]
[1723755850311,0.007,56708.0,56707.0,0.001]
[1723755850494,0.0617442,56703.0,56702.0,1e-08]
[1723755851186,0.3608,56706.0,56702.0,1e-08]
[1723755851391,0.014,56708.0,56706.0,0.044071]
[1723755851600,0.014,56708.0,56706.0,0.444071]
[1723755851797,0.01273531,56708.0,56707.0,0.52904]
[1723755852100,0.3608,56735.0,56707.0,5.08277993]
[1723755852295,0.0617442,56730.0,56729.0,0.044054]
[1723755852492,0.0617442,56730.0,56723.0,0.3608]
[1723755852493,0.3608,56740.0,56730.0,0.044053]
[1723755852692,0.0617442,56740.0,56733.0,0.3608]
[1723755853088,0.0617442,56740.0,56737.0,0.044047]
[1723755853293,0.0617442,56740.0,56739.0,0.3608]
[1723755854312,0.0617442,56740.0,56737.0,0.044047]
[1723755854313,0.0627442,56740.0,56737.0,0.009]
[1723755854602,0.0617442,56738.0,56737.0,0.009]
[1723755855106,0.001,56740.0,56739.0,0.003]
[1723755855402,0.0627442,56740.0,56739.0,0.003]
[1723755855994,0.0617442,56740.0,56737.0,0.001]
[1723755856193,0.0627442,56740.0,56739.0,0.007]
[1723755856589,0.0627442,56740.0,56737.0,0.001]
[1723755856790,0.045045,56740.0,56739.0,0.006]
[1723755856997,0.0617442,56732.0,56719.0,0.044061]
[1723755857298,0.4225442,56724.0,56712.0,0.00019744]
[1723755857490,0.0617442,56719.0,56712.0,0.00019744]
[1723755857694,0.0617442,56719.0,56717.0,0.044063]
[1723755857893,0.0617442,56719.0,56712.0,0.00019744]
[1723755858094,0.3608,56716.0,56712.0,0.1504619]
[1723755858702,0.36106446,56724.0,56713.0,0.52896]
[1723755858903,0.36106446,56724.0,56715.0,0.3608]
[1723755859206,0.3608,56734.0,56732.0,0.044051]
[1723755860201,0.3608,56739.0,56735.0,0.044049]
[1723755860405,0.0617442,56737.0,56735.0,0.044049]
[1723755860603,0.36106446,56739.0,56737.0,0.044047]
[1723755860912,0.00026446,56739.0,56737.0,0.184047]
[1723755861201,0.00026446,56739.0,56738.0,0.52876]
[1723755861410,0.42280866,56739.0,56735.0,0.00092]
[1723755861702,0.00026446,56739.0,56738.0,0.044047]
[1723755861902,0.00026446,56739.0,56738.0,0.204047]
[1723755862306,0.00026446,56739.0,56738.0,0.208047]
[1723755862503,0.00126446,56739.0,56738.0,0.208047]
[1723755862900,0.42380866,56739.0,56738.0,0.004]
[1723755863100,0.36106446,56739.0,56738.0,0.154]
[1723755863302,0.36206446,56739.0,56738.0,0.16]
[1723755863503,0.00126446,56739.0,56738.0,0.16]
[1723755863708,0.36106446,56739.0,56738.0,0.161]
[1723755864016,0.00126446,56739.0,56738.0,0.159]
[1723755864306,0.36106446,56739.0,56738.0,0.152]
[1723755864494,0.36206446,56739.0,56738.0,0.159]
[1723755864695,0.36206446,56739.0,56738.0,0.161]
[1723755865112,0.06300866,56739.0,56738.0,0.011]
[1723755865500,0.00126446,56739.0,56738.0,1.29856]
[1723755865697,0.3608,56760.0,56738.0,1.10776]
[1723755865896,0.0617442,56745.0,56738.0,0.179]
[1723755866300,0.3608,56760.0,56738.0,0.70772]
[1723755866505,0.3608,56760.0,56738.0,0.179]
[1723755866506,0.3608,56748.0,56738.0,0.179]
[1723755866813,0.001,56739.0,56738.0,0.222046]
[1723755867003,0.001,56739.0,56738.0,0.582846]
[1723755867305,0.00026446,56749.0,56738.0,0.18]
[1723755867499,0.0627442,56745.0,56738.0,0.18]
[1723755867705,0.0627442,56745.0,56738.0,0.178]
[1723755867909,0.0617442,56745.0,56738.0,0.174]
[1723755868110,0.001,56739.0,56738.0,0.182]
[1723755868709,0.001,56739.0,56738.0,1.115607]
[1723755868899,0.001,56739.0,56738.0,0.226047]
[1723755869303,0.001,56739.0,56738.0,0.182]
[1723755869510,0.0627442,56739.0,56738.0,0.012]
[1723755869714,0.0617442,56739.0,56738.0,0.012]
[1723755869915,0.0617442,56739.0,56738.0,0.056047]
[1723755870214,0.0617442,56739.0,56738.0,0.048047]
[1723755870416,0.3618,56739.0,56738.0,0.056047]
[1723755870604,0.0627442,56739.0,56738.0,0.226047]
[1723755870804,0.3608,56747.0,56738.0,0.174]
[1723755871113,0.001,56739.0,56738.0,0.224046]
[1723755871614,0.001,56739.0,56738.0,0.226046]
[1723755871808,0.0627442,56739.0,56738.0,0.196046]
[1723755872605,0.0627442,56739.0,56738.0,0.556846]
[1723755873114,0.0627442,56739.0,56738.0,0.548846]
[1723755873318,0.00026446,56749.0,56738.0,1.43756]
[1723755873614,0.06200866,56749.0,56748.0,0.044039]
[1723755873811,0.06200866,56749.0,56748.0,0.214039]
[1723755874812,0.06600866,56749.0,56748.0,0.214039]
[1723755875017,0.06900866,56749.0,56748.0,0.215039]
[1723755876008,0.06900866,56749.0,56748.0,0.171]
[1723755876208,0.06900866,56749.0,56748.0,0.001]
[1723755876415,0.15461838,56749.0,56748.0,0.001]
[1723755876617,0.11058038,56749.0,56738.0,0.3608]
[1723755876806,0.06942243,56741.0,56738.0,0.51657952]
[1723755877111,0.06942243,56742.0,56739.0,0.044046]
[1723755877312,0.06900866,56749.0,56742.0,0.044043]
[1723755877313,0.06942243,56743.0,56742.0,0.044043]
[1723755877512,0.06942243,56743.0,56742.0,0.214043]
[1723755877715,0.06942243,56743.0,56742.0,0.742763]
[1723755877917,0.08677699,56748.0,56742.0,0.69872]
[1723755878115,0.0617442,56743.0,56742.0,0.17]
[1723755878318,0.18281151,56743.0,56742.0,0.16]
[1723755878515,0.24455571,56743.0,56742.0,0.204043]
[1723755878820,0.24455571,56743.0,56742.0,0.207043]
[1723755879513,0.39488378,56743.0,56742.0,0.207043]
[1723755880316,0.39104682,56743.0,56742.0,0.207043]
[1723755880618,0.39104682,56743.0,56742.0,0.567843]
[1723755880619,0.39129267,56743.0,56742.0,0.567843]
[1723755881521,0.39129267,56743.0,56742.0,0.5238]
[1723755882010,0.39129267,56743.0,56737.0,0.40511146]
[1723755882011,0.0617442,56737.0,56731.0,0.6813]
[1723755882211,0.32954847,56736.0,56735.0,0.044049]
[1723755882407,0.49051021,56736.0,56735.0,0.194049]
[1723755882613,0.32954847,56736.0,56735.0,0.194049]
[1723755883718,0.27967832,56736.0,56735.0,1.122809]
[1723755884017,0.15755639,56736.0,56735.0,1.122809]
[1723755884223,0.27048032,56736.0,56735.0,1.122809]
[1723755884424,0.16177102,56736.0,56735.0,1.13449395]
[1723755884630,0.04064909,56736.0,56735.0,1.14449395]
[1723755885119,0.03128302,56736.0,56735.0,1.14449395]
[1723755885320,0.02439302,56736.0,56735.0,1.14449395]
[1723755885820,0.13954934,56743.0,56735.0,0.61573395]
[1723755886023,0.12212392,56745.0,56742.0,0.7216]
[1723755886325,0.06977948,56761.0,56759.0,0.04403]
[1723755886515,0.06977948,56769.0,56760.0,1.49688]
[1723755886814,0.0617442,56769.0,56768.0,0.404823]
[1723755887010,0.06977948,56772.0,56770.0,0.044022]
[1723755887329,0.3608,56781.0,56774.0,0.044018]
[1723755887330,0.13152368,56777.0,56774.0,0.044018]
[1723755887512,0.13152368,56777.0,56775.0,0.3608]
[1723755887513,0.0617442,56777.0,56775.0,0.3608]
[1723755887717,0.0617442,56777.0,56775.0,0.5108]
[1723755888315,0.06977948,56779.0,56775.0,0.5108]
[1723755888316,0.06977948,56779.0,56775.0,0.554817]
[1723755888527,0.06977948,56780.0,56775.0,0.5108]
[1723755888820,0.3610641,56781.0,56775.0,0.5108]
[1723755888821,0.0002641,56781.0,56775.0,0.5108]
[1723755889016,0.0617442,56778.0,56775.0,0.51660004]
[1723755889325,0.0617442,56776.0,56775.0,0.36660004]
[1723755889624,0.0617442,56776.0,56774.0,0.001]
[1723755889926,0.0617442,56776.0,56775.0,0.001]
[1723755890127,0.0617442,56776.0,56775.0,0.002]
[1723755890424,0.0617442,56776.0,56775.0,0.001]
[1723755890727,0.0677442,56776.0,56775.0,0.001]
[1723755891514,0.13752368,56776.0,56775.0,0.001]
[1723755892025,0.0677442,56776.0,56775.0,0.001]
[1723755892326,0.13734356,56776.0,56775.0,0.001]
[1723755893226,0.13134356,56776.0,56775.0,0.002]
[1723755893425,0.044019,56773.0,56766.0,0.3608]
[1723755893728,0.3608,56777.0,56766.0,0.3608]
[1723755893729,0.0617442,56768.0,56766.0,0.5008]
[1723755893929,0.3608,56772.0,56766.0,0.5008]
[1723755894113,0.0617442,56767.0,56766.0,0.50647816]
[1723755894517,0.3608,56772.0,56766.0,0.50647816]
[1723755894921,0.06957995,56779.0,56766.0,0.50647816]
[1723755895126,0.0617442,56776.0,56773.0,0.044019]
[1723755895327,0.0617442,56776.0,56773.0,0.214019]
[1723755895527,0.0617442,56775.0,56773.0,0.214019]
[1723755895825,0.0617442,56776.0,56774.0,0.044019]
[1723755896122,0.0002641,56781.0,56776.0,0.044016]
[1723755896326,0.0617442,56777.0,56776.0,0.214016]
[1723755897431,0.0617442,56777.0,56776.0,0.574816]
[1723755898228,0.008,56777.0,56776.0,0.5374083]
[1723755898420,0.008,56777.0,56776.0,0.5814253]
[1723755898623,0.01,56777.0,56776.0,0.5824253]
[1723755899125,0.01,56777.0,56776.0,1.1108253]
[1723755900434,0.0717442,56777.0,56776.0,0.1776083]
[1723755900826,0.0717442,56777.0,56776.0,0.002]
[1723755902035,0.5284,56776.0,56763.0,0.00026446]
[1723755902327,0.3608,56764.0,56763.0,0.00026446]
[1723755902728,0.06946129,56773.0,56763.0,0.04429146]
[1723755902729,0.0002641,56769.0,56763.0,0.04429146]
[1723755902935,0.3608,56766.0,56763.0,0.00026446]
[1723755903232,0.3608,56766.0,56763.0,0.00326446]
[1723755903422,0.3608,56766.0,56763.0,0.00926446]
[1723755903933,0.3608,56766.0,56763.0,0.00826446]
[1723755904321,0.3608,56766.0,56763.0,0.00326446]
[1723755904531,0.3608,56766.0,56763.0,0.00826446]
[1723755905125,0.3608,56764.0,56763.0,0.00826446]
[1723755905322,0.3608,56764.0,56763.0,0.00926446]
[1723755905926,0.404826,56764.0,56763.0,0.00426446]
[1723755906128,0.3608,56764.0,56763.0,0.05329146]
[1723755906429,0.3608,56768.0,56763.0,0.17726446]
[1723755906631,0.3608,56768.0,56763.0,0.00726446]
[1723755907225,0.3608,56768.0,56763.0,0.00526446]
[1723755907626,0.3608,56768.0,56764.0,0.044026]
[1723755908033,0.3618,56768.0,56764.0,0.044026]
[1723755908347,0.3618,56768.0,56767.0,0.044024]
[1723755908824,0.08722436,56787.0,56767.0,0.044024]
[1723755908825,0.3608,56778.0,56777.0,0.044016]
[1723755909028,0.3608,56778.0,56767.0,1.09848]
[1723755909029,0.3608,56780.0,56779.0,0.044015]
[1723755909433,0.3608,56796.0,56779.0,0.5208]
[1723755909729,0.3608,56796.0,56794.0,0.044002]
[1723755909933,0.36236001,56803.0,56796.0,0.044001]
[1723755910134,0.3608,56803.0,56790.0,0.00888988]
[1723755910327,0.3608,56807.0,56802.0,0.3608]
[1723755911035,0.3608,56807.0,56805.0,0.043994]
[1723755911235,0.43026129,56822.0,56803.0,0.3608]
[1723755911535,0.3608,56817.0,56803.0,0.3608]
[1723755911744,0.3608,56824.0,56816.0,0.043986]
[1723755912036,0.3608,56824.0,56813.0,0.3608]
[1723755912539,0.004,56822.0,56820.0,0.043982]
[1723755912730,0.004,56822.0,56820.0,0.404782]
[1723755913239,0.001,56824.0,56820.0,0.3608]
[1723755913630,0.001,56824.0,56822.0,0.043981]
[1723755915241,0.001,56824.0,56822.0,0.290501]
[1723755915539,0.3608,56830.0,56822.0,0.290501]
[1723755915540,0.3608,56830.0,56823.0,0.04398]
[1723755915839,0.3608,56830.0,56824.0,0.043979]
[1723755916044,0.3608,56830.0,56825.0,0.404779]
[1723755916831,0.3608,56830.0,56823.0,0.001]
[1723755917038,0.3608,56824.0,56822.0,0.001]
[1723755917237,0.3608,56830.0,56822.0,0.001]
[1723755917534,0.3608,56830.0,56825.0,0.043979]
[1723755917735,0.3608,56830.0,56822.0,0.00969673]
[1723755917933,0.3608,56830.0,56828.0,0.043976]
[1723755918146,0.3738,56830.0,56828.0,0.043976]
[1723755918849,0.3608,56830.0,56828.0,0.043976]
[1723755919138,0.3608,56830.0,56828.0,0.04972196]
[1723755919339,0.3608,56830.0,56828.0,0.00574596]
[1723755919546,0.3608,56830.0,56825.0,0.3608]
[1723755919846,0.3658,56830.0,56825.0,0.5108]
[1723755920237,0.3658,56830.0,56828.0,0.043976]
[1723755921152,0.3608,56830.0,56828.0,0.043976]
[1723755921331,0.002,56830.0,56828.0,0.213976]
[1723755921554,0.002,56830.0,56825.0,0.7964651]
[1723755921555,0.043978,56826.0,56825.0,0.00108]
[1723755921744,0.3608,56826.0,56818.0,0.00567073]
[1723755922047,0.007,56830.0,56819.0,0.52976397]
[1723755922448,0.007,56830.0,56826.0,0.3608]
[1723755922741,0.007,56830.0,56826.0,0.5308]
[1723755922742,0.001,56830.0,56826.0,0.5308]
[1723755922943,0.043971,56836.0,56826.0,0.5308]
[1723755923546,0.043971,56835.0,56826.0,0.5308]
[1723755924445,0.3608,56837.0,56829.0,0.043976]
[1723755924446,0.003,56830.0,56829.0,0.043976]
[1723755925046,0.3608,56837.0,56829.0,0.043976]
[1723755925342,0.003,56835.0,56830.0,0.043975]
[1723755925536,0.003,56835.0,56830.0,0.203975]
[1723755925936,0.003,56835.0,56830.0,0.16]
[1723755926136,0.003,56835.0,56834.0,0.043972]
[1723755926546,0.007,56835.0,56834.0,0.043972]
[1723755927539,0.007,56830.0,56829.0,0.001]
[1723755927947,0.007,56830.0,56829.0,0.171]
[1723755928148,0.007,56830.0,56829.0,0.214976]
[1723755928350,0.016,56835.0,56834.0,0.044972]
[1723755928648,0.012,56835.0,56834.0,0.044972]
[1723755929050,0.3608,56838.0,56834.0,0.043972]
[1723755929843,0.004,56835.0,56834.0,0.044972]
[1723755931148,0.3608,56838.0,56834.0,0.044972]
[1723755931149,0.3608,56838.0,56834.0,0.043972]
[1723755931345,0.3648,56838.0,56834.0,0.044972]
[1723755931648,0.3648,56838.0,56799.0,0.450498]
[1723755931649,0.3728,56835.0,56819.0,0.00717903]
[1723755931949,0.3768,56835.0,56819.0,0.16]
[1723755932144,0.3768,56835.0,56819.0,0.16871038]
[1723755932145,0.3648,56835.0,56819.0,0.16871038]
[1723755932344,0.3608,56835.0,56834.0,0.001]
[1723755932652,0.3608,56835.0,56834.0,0.00130158]
[1723755932945,0.3608,56835.0,56834.0,0.04527358]
[1723755933151,0.3608,56835.0,56834.0,0.044972]
[1723755933851,0.3608,56835.0,56834.0,0.043972]
[1723755934444,0.3608,56835.0,56834.0,0.00713106]
[1723755934645,0.3658,56835.0,56834.0,0.001]